[Event "Titled Tuesday Blitz December 27 Late 2022"]
[White "Silvestre, Christian"]
[Black "Slade, Theodore"]
[WhiteFideId "30956269"]
[BlackFideId "426547"]
[WhiteElo "1942"]
[BlackElo "1995"]
[Result "0-1"]
[Round "07"]
[TimeControl "180+2"]
[Date "2022.12.27"]
[WhiteClock "0:01:44"]
[BlackClock "0:01:52"]

1. e4 {[%clk 0:02:57]}  e5 {[%clk 0:03:00]} 2. Nc3 {[%clk 0:02:55]}  Nf6 {[%clk 0:03:00]} 3. f4 {[%clk 0:02:55]}  d5 {[%clk 0:03:01]} 4. exd5 {[%clk 0:02:54]}  exf4 {[%clk 0:02:56]} 5. Nf3 {[%clk 0:02:53]}  Bb4 {[%clk 0:02:51]} 6. Bc4 {[%clk 0:02:51]}  O-O {[%clk 0:02:49]} 7. O-O {[%clk 0:02:50]}  Nbd7 {[%clk 0:02:42]} 8. a3 {[%clk 0:02:49]}  Bxc3 {[%clk 0:02:35]} 9. dxc3 {[%clk 0:02:48]}  Nb6 {[%clk 0:02:35]} 10. Ba2 {[%clk 0:02:41]}  Nbxd5 {[%clk 0:02:35]} 11. Ne5 {[%clk 0:02:37]}  Be6 {[%clk 0:02:28]} 12. Qf3 {[%clk 0:02:13]}  Qd6 {[%clk 0:02:14]} 13. Bxf4 {[%clk 0:02:13]}  Qb6+ {[%clk 0:02:03]} 14. Kh1 {[%clk 0:02:08]}  Qxb2 {[%clk 0:02:01]} 15. Bg5 {[%clk 0:01:47]}  Qxc3 {[%clk 0:01:53]} 16. Qf2 {[%clk 0:01:44]}  Qxe5 {[%clk 0:01:52]} 0-1


[Site "https://www.chess.com"]

[Event "Titled Tuesday Blitz December 27 Late 2022"]
[White "Solon, Nathan"]
[Black "Stankovic, Ivan G"]
[WhiteFideId "2017229"]
[BlackFideId "902837"]
[WhiteElo "2306"]
[BlackElo "2302"]
[Result "1-0"]
[Round "07"]
[TimeControl "180+2"]
[Date "2022.12.27"]
[WhiteClock "0:00:45"]
[BlackClock "0:00:18"]

1. Nf3 {[%clk 0:03:00]}  Nf6 {[%clk 0:02:58]} 2. g3 {[%clk 0:03:01]}  g6 {[%clk 0:02:58]} 3. b3 {[%clk 0:03:02]}  Bg7 {[%clk 0:02:59]} 4. Bb2 {[%clk 0:03:02]}  O-O {[%clk 0:02:59]} 5. Bg2 {[%clk 0:03:02]}  d6 {[%clk 0:03:00]} 6. d4 {[%clk 0:03:02]}  Nbd7 {[%clk 0:03:00]} 7. O-O {[%clk 0:03:01]}  Re8 {[%clk 0:03:00]} 8. c4 {[%clk 0:02:56]}  c6 {[%clk 0:02:42]} 9. h3 {[%clk 0:02:50]}  Qc7 {[%clk 0:02:37]} 10. Nc3 {[%clk 0:02:48]}  e5 {[%clk 0:02:37]} 11. e4 {[%clk 0:02:48]}  Nf8 {[%clk 0:02:34]} 12. d5 {[%clk 0:02:37]}  c5 {[%clk 0:02:19]} 13. Ne1 {[%clk 0:02:35]}  Nh5 {[%clk 0:02:16]} 14. Nc2 {[%clk 0:02:25]}  Bd7 {[%clk 0:02:09]} 15. Ne3 {[%clk 0:02:16]}  a6 {[%clk 0:02:07]} 16. Qd3 {[%clk 0:02:08]}  h6 {[%clk 0:01:51]} 17. Rae1 {[%clk 0:02:06]}  Rab8 {[%clk 0:01:44]} 18. Kh2 {[%clk 0:02:00]}  b5 {[%clk 0:01:43]} 19. f4 {[%clk 0:01:45]}  exf4 {[%clk 0:01:42]} 20. gxf4 {[%clk 0:01:46]}  Nxf4 {[%clk 0:01:30]} 21. Qd2 {[%clk 0:01:29]}  g5 {[%clk 0:01:24]} 22. Ne2 {[%clk 0:01:18]}  N8g6 {[%clk 0:01:19]} 23. Bxg7 {[%clk 0:01:17]}  Kxg7 {[%clk 0:01:20]} 24. Ng3 {[%clk 0:01:15]}  bxc4 {[%clk 0:01:14]} 25. Qc3+ {[%clk 0:01:09]}  f6 {[%clk 0:01:12]} 26. Nef5+ {[%clk 0:01:02]}  Bxf5 {[%clk 0:01:12]} 27. Nxf5+ {[%clk 0:01:03]}  Kh7 {[%clk 0:01:11]} 28. bxc4 {[%clk 0:00:58]}  Ne5 {[%clk 0:01:06]} 29. Qg3 {[%clk 0:00:51]}  Rb2 {[%clk 0:00:40]} 30. Rxf4 {[%clk 0:00:51]}  gxf4 {[%clk 0:00:40]} 31. Qxf4 {[%clk 0:00:52]}  Nf7 {[%clk 0:00:21]} 32. Kh1 {[%clk 0:00:52]}  Rg8 {[%clk 0:00:21]} 33. Bf3 {[%clk 0:00:49]}  Ng5 {[%clk 0:00:18]} 34. Bh5 {[%clk 0:00:45]}  Nxh3 {[%clk 0:00:18]} 35. Qxh6# {[%clk 0:00:45]} 1-0


[Site "https://www.chess.com"]

[Event "Titled Tuesday Blitz December 27 Late 2022"]
[White "Tanenbaum, Zachary"]
[Black "Rodriguez Fontecha, Marcos"]
[WhiteFideId "2060850"]
[BlackFideId "2256576"]
[WhiteElo "2261"]
[BlackElo "2309"]
[Result "1-0"]
[Round "07"]
[TimeControl "180+2"]
[Date "2022.12.27"]
[WhiteClock "0:01:53"]
[BlackClock "0:00:58"]

1. e4 {[%clk 0:03:00]}  e6 {[%clk 0:02:58]} 2. d4 {[%clk 0:02:59]}  c5 {[%clk 0:02:58]} 3. Nc3 {[%clk 0:03:00]}  cxd4 {[%clk 0:02:58]} 4. Qxd4 {[%clk 0:02:58]}  Nc6 {[%clk 0:02:59]} 5. Qd1 {[%clk 0:02:58]}  Bb4 {[%clk 0:02:58]} 6. Bd2 {[%clk 0:02:57]}  Nf6 {[%clk 0:02:56]} 7. Nf3 {[%clk 0:02:56]}  d5 {[%clk 0:02:55]} 8. exd5 {[%clk 0:02:56]}  Nxd5 {[%clk 0:02:51]} 9. Nxd5 {[%clk 0:02:55]}  Qxd5 {[%clk 0:02:50]} 10. Bd3 {[%clk 0:02:50]}  O-O {[%clk 0:02:39]} 11. O-O {[%clk 0:02:49]}  Rd8 {[%clk 0:02:32]} 12. Re1 {[%clk 0:02:17]}  Bxd2 {[%clk 0:02:25]} 13. Qxd2 {[%clk 0:02:16]}  b6 {[%clk 0:02:22]} 14. Qf4 {[%clk 0:02:02]}  Bb7 {[%clk 0:02:08]} 15. Ng5 {[%clk 0:01:58]}  f5 {[%clk 0:01:44]} 16. Bc4 {[%clk 0:01:53]}  Qd4 {[%clk 0:01:19]} 17. Bxe6+ {[%clk 0:01:53]}  Kf8 {[%clk 0:00:58]} 18. Qxf5+ {[%clk 0:01:53]} 1-0


[Site "https://www.chess.com"]

[Event "Titled Tuesday Blitz December 27 Late 2022"]
[White "Tomaszewski, Kacper"]
[Black "Vlassov, Nikolai"]
[WhiteFideId "1127373"]
[BlackFideId "4103360"]
[WhiteElo "2313"]
[BlackElo "2283"]
[Result "0-1"]
[Round "07"]
[TimeControl "180+2"]
[Date "2022.12.27"]
[WhiteClock "0:00:01"]
[BlackClock "0:00:07"]

1. e4 {[%clk 0:03:00]}  c5 {[%clk 0:02:59]} 2. Nf3 {[%clk 0:03:00]}  d6 {[%clk 0:02:59]} 3. c3 {[%clk 0:02:53]}  Nf6 {[%clk 0:02:58]} 4. g3 {[%clk 0:02:52]}  g6 {[%clk 0:02:56]} 5. Bg2 {[%clk 0:02:52]}  Bg7 {[%clk 0:02:56]} 6. O-O {[%clk 0:02:52]}  O-O {[%clk 0:02:56]} 7. d3 {[%clk 0:02:52]}  Nc6 {[%clk 0:02:55]} 8. Nbd2 {[%clk 0:02:52]}  Rb8 {[%clk 0:02:55]} 9. Re1 {[%clk 0:02:42]}  b5 {[%clk 0:02:55]} 10. d4 {[%clk 0:02:39]}  b4 {[%clk 0:02:47]} 11. Nb3 {[%clk 0:02:35]}  bxc3 {[%clk 0:02:38]} 12. bxc3 {[%clk 0:02:36]}  cxd4 {[%clk 0:02:31]} 13. cxd4 {[%clk 0:02:36]}  d5 {[%clk 0:02:31]} 14. e5 {[%clk 0:02:26]}  Ne4 {[%clk 0:02:31]} 15. Bf4 {[%clk 0:02:20]}  Rb6 {[%clk 0:02:13]} 16. Nfd2 {[%clk 0:02:17]}  Nxd2 {[%clk 0:02:10]} 17. Qxd2 {[%clk 0:02:18]}  Ba6 {[%clk 0:01:58]} 18. Nc5 {[%clk 0:02:12]}  Bc4 {[%clk 0:01:57]} 19. e6 {[%clk 0:02:10]}  Nxd4 {[%clk 0:01:25]} 20. Nd7 {[%clk 0:02:08]}  Rxe6 {[%clk 0:01:21]} 21. Nxf8 {[%clk 0:02:04]}  Qxf8 {[%clk 0:01:09]} 22. Rad1 {[%clk 0:01:45]}  Ne2+ {[%clk 0:01:00]} 23. Kh1 {[%clk 0:01:41]}  Bc3 {[%clk 0:00:59]} 24. Rxe2 {[%clk 0:01:15]}  Bxd2 {[%clk 0:00:51]} 25. Rexd2 {[%clk 0:01:15]}  Re2 {[%clk 0:00:39]} 26. Rxe2 {[%clk 0:01:13]}  Bxe2 {[%clk 0:00:39]} 27. Rxd5 {[%clk 0:01:13]}  Kg7 {[%clk 0:00:29]} 28. Rd7 {[%clk 0:01:04]}  a6 {[%clk 0:00:22]} 29. Be5+ {[%clk 0:00:50]}  f6 {[%clk 0:00:22]} 30. Bd6 {[%clk 0:00:47]}  Kh6 {[%clk 0:00:18]} 31. Rxe7 {[%clk 0:00:46]}  Qd8 {[%clk 0:00:18]} 32. Rxe2 {[%clk 0:00:19]}  Qxd6 {[%clk 0:00:18]} 33. Bf3 {[%clk 0:00:17]}  f5 {[%clk 0:00:18]} 34. Kg2 {[%clk 0:00:17]}  Kg5 {[%clk 0:00:17]} 35. Rc2 {[%clk 0:00:16]}  h5 {[%clk 0:00:16]} 36. h4+ {[%clk 0:00:16]}  Kh6 {[%clk 0:00:17]} 37. Rc6 {[%clk 0:00:16]}  Qa3 {[%clk 0:00:17]} 38. Bd5 {[%clk 0:00:12]}  Kg7 {[%clk 0:00:16]} 39. Rc7+ {[%clk 0:00:12]}  Kf6 {[%clk 0:00:16]} 40. Rc6+ {[%clk 0:00:12]}  Ke5 {[%clk 0:00:16]} 41. Bb3 {[%clk 0:00:12]}  f4 {[%clk 0:00:12]} 42. Re6+ {[%clk 0:00:10]}  Kf5 {[%clk 0:00:11]} 43. gxf4 {[%clk 0:00:08]}  Qb4 {[%clk 0:00:09]} 44. Re5+ {[%clk 0:00:08]}  Kxf4 {[%clk 0:00:09]} 45. Re6 {[%clk 0:00:03]}  Kf5 {[%clk 0:00:09]} 46. Re3 {[%clk 0:00:02]}  Qxh4 {[%clk 0:00:09]} 47. Rf3+ {[%clk 0:00:02]}  Ke5 {[%clk 0:00:09]} 48. Re3+ {[%clk 0:00:03]}  Kd4 {[%clk 0:00:08]} 49. Rg3 {[%clk 0:00:03]}  Qe4+ {[%clk 0:00:08]} 50. Kh2 {[%clk 0:00:03]}  h4 {[%clk 0:00:08]} 51. Rg2 {[%clk 0:00:01]}  Qf4+ {[%clk 0:00:07]} 52. Kg1 {[%clk 0:00:01]}  g5 {[%clk 0:00:07]} 53. Kh1 {[%clk 0:00:01]}  h3 {[%clk 0:00:07]} 0-1


[Site "https://www.chess.com"]

[Event "Titled Tuesday Blitz December 27 Late 2022"]
[White "Toncheva, Nadya"]
[Black "Arnold, Ken"]
[WhiteFideId "2924056"]
[BlackFideId "2056836"]
[WhiteElo "2295"]
[BlackElo "2355"]
[Result "1-0"]
[Round "07"]
[TimeControl "180+2"]
[Date "2022.12.27"]
[WhiteClock "0:00:16"]
[BlackClock "0:00:15"]

1. e4 {[%clk 0:03:00]}  c6 {[%clk 0:02:58]} 2. d4 {[%clk 0:02:59]}  d5 {[%clk 0:02:58]} 3. Nc3 {[%clk 0:02:59]}  dxe4 {[%clk 0:02:58]} 4. Nxe4 {[%clk 0:03:00]}  Nf6 {[%clk 0:02:58]} 5. Nxf6+ {[%clk 0:03:00]}  exf6 {[%clk 0:02:58]} 6. c3 {[%clk 0:03:00]}  Bd6 {[%clk 0:02:58]} 7. Bd3 {[%clk 0:02:59]}  O-O {[%clk 0:02:58]} 8. Ne2 {[%clk 0:03:00]}  Re8 {[%clk 0:02:58]} 9. O-O {[%clk 0:03:00]}  Bg4 {[%clk 0:02:56]} 10. f3 {[%clk 0:02:50]}  Bh5 {[%clk 0:02:53]} 11. Nf4 {[%clk 0:02:41]}  Bg6 {[%clk 0:02:49]} 12. Nxg6 {[%clk 0:02:39]}  hxg6 {[%clk 0:02:47]} 13. Re1 {[%clk 0:02:30]}  Nd7 {[%clk 0:02:46]} 14. Be3 {[%clk 0:02:24]}  Qc7 {[%clk 0:02:45]} 15. h3 {[%clk 0:02:14]}  Bh2+ {[%clk 0:02:44]} 16. Kh1 {[%clk 0:02:12]}  Bg3 {[%clk 0:02:44]} 17. Re2 {[%clk 0:02:11]}  f5 {[%clk 0:02:44]} 18. Qf1 {[%clk 0:01:54]}  Nf6 {[%clk 0:02:38]} 19. Bf2 {[%clk 0:01:32]}  Nh5 {[%clk 0:02:32]} 20. Rae1 {[%clk 0:01:10]}  Rxe2 {[%clk 0:02:12]} 21. Qxe2 {[%clk 0:01:05]}  Kh7 {[%clk 0:01:39]} 22. Bc4 {[%clk 0:00:43]}  Re8 {[%clk 0:01:18]} 23. Qxe8 {[%clk 0:00:24]}  Bxf2 {[%clk 0:01:18]} 24. Qe5 {[%clk 0:00:20]}  Ng3+ {[%clk 0:00:55]} 25. Kh2 {[%clk 0:00:20]}  Qxe5 {[%clk 0:00:33]} 26. Rxe5 {[%clk 0:00:19]}  b5 {[%clk 0:00:26]} 27. Bd3 {[%clk 0:00:19]}  Nh5 {[%clk 0:00:18]} 28. Re7 {[%clk 0:00:18]}  Bg3+ {[%clk 0:00:18]} 29. Kg1 {[%clk 0:00:18]}  f6 {[%clk 0:00:14]} 30. Rxa7 {[%clk 0:00:17]}  Bf4 {[%clk 0:00:15]} 31. Re7 {[%clk 0:00:16]} 1-0


[Site "https://www.chess.com"]

[Event "Titled Tuesday Blitz December 27 Late 2022"]
[White "Vaibhav Jayant Raut"]
[Black "Defend, Balint"]
[WhiteFideId "5089034"]
[BlackFideId "17004853"]
[WhiteElo "2237"]
[BlackElo "1673"]
[Result "1-0"]
[Round "07"]
[TimeControl "180+2"]
[Date "2022.12.27"]
[WhiteClock "0:00:15"]
[BlackClock "0:00:09"]

1. c4 {[%clk 0:03:00]}  Nf6 {[%clk 0:02:59]} 2. Nc3 {[%clk 0:02:58]}  e6 {[%clk 0:02:59]} 3. g3 {[%clk 0:02:57]}  d5 {[%clk 0:02:59]} 4. d4 {[%clk 0:02:56]}  dxc4 {[%clk 0:02:54]} 5. Nf3 {[%clk 0:02:56]}  c5 {[%clk 0:02:52]} 6. Qa4+ {[%clk 0:02:52]}  Nc6 {[%clk 0:02:52]} 7. dxc5 {[%clk 0:02:50]}  Bxc5 {[%clk 0:02:50]} 8. Qxc4 {[%clk 0:02:49]}  Qe7 {[%clk 0:02:26]} 9. Bg5 {[%clk 0:02:45]}  Bb6 {[%clk 0:02:21]} 10. Bg2 {[%clk 0:02:41]}  Bd7 {[%clk 0:02:19]} 11. O-O {[%clk 0:02:37]}  Rc8 {[%clk 0:02:19]} 12. Qh4 {[%clk 0:02:34]}  h6 {[%clk 0:02:19]} 13. Ne4 {[%clk 0:02:33]}  Bd8 {[%clk 0:02:16]} 14. Rad1 {[%clk 0:02:27]}  Rc7 {[%clk 0:01:51]} 15. Rd2 {[%clk 0:02:14]}  Rh7 {[%clk 0:01:22]} 16. Bxf6 {[%clk 0:01:57]}  gxf6 {[%clk 0:01:21]} 17. Rfd1 {[%clk 0:01:53]}  f5 {[%clk 0:01:14]} 18. Nd6+ {[%clk 0:01:47]}  Kf8 {[%clk 0:01:14]} 19. Qf4 {[%clk 0:01:32]}  e5 {[%clk 0:01:07]} 20. Qe3 {[%clk 0:01:19]}  e4 {[%clk 0:01:05]} 21. Nh4 {[%clk 0:01:18]}  Qe5 {[%clk 0:00:59]} 22. Nc4 {[%clk 0:01:16]}  Qe8 {[%clk 0:00:54]} 23. Qf4 {[%clk 0:01:09]}  Qe6 {[%clk 0:00:46]} 24. b3 {[%clk 0:01:04]}  b5 {[%clk 0:00:29]} 25. Rd6 {[%clk 0:01:00]}  Qe8 {[%clk 0:00:28]} 26. Rxh6 {[%clk 0:00:50]}  Rxh6 {[%clk 0:00:29]} 27. Qxh6+ {[%clk 0:00:51]}  Kg8 {[%clk 0:00:29]} 28. Nd6 {[%clk 0:00:44]}  Qe5 {[%clk 0:00:24]} 29. Qh5 {[%clk 0:00:39]}  Bxh4 {[%clk 0:00:20]} 30. Qxf7+ {[%clk 0:00:36]}  Kh8 {[%clk 0:00:18]} 31. gxh4 {[%clk 0:00:34]}  Qe6 {[%clk 0:00:17]} 32. Qf8+ {[%clk 0:00:30]}  Kh7 {[%clk 0:00:18]} 33. Nxb5 {[%clk 0:00:25]}  Rb7 {[%clk 0:00:17]} 34. Rd6 {[%clk 0:00:23]}  Rxb5 {[%clk 0:00:12]} 35. Rxe6 {[%clk 0:00:22]}  Bxe6 {[%clk 0:00:13]} 36. Qd6 {[%clk 0:00:20]}  Bd5 {[%clk 0:00:12]} 37. h5 {[%clk 0:00:18]}  Nd4 {[%clk 0:00:09]} 38. Qg6+ {[%clk 0:00:16]}  Kh8 {[%clk 0:00:09]} 39. Qf6+ {[%clk 0:00:15]} 1-0


[Site "https://www.chess.com"]

[Event "Titled Tuesday Blitz December 27 Late 2022"]
[White "Vifleemskaia, Svetlana"]
[Black "Rangel, Daniel"]
[WhiteFideId "4129490"]
[BlackFideId "2124475"]
[WhiteElo "1971"]
[BlackElo "2207"]
[Result "1-0"]
[Round "07"]
[TimeControl "180+2"]
[Date "2022.12.27"]
[WhiteClock "0:00:49"]
[BlackClock "0:00:06"]

1. d4 {[%clk 0:03:00]}  Nf6 {[%clk 0:00:15]} 2. c4 {[%clk 0:02:58]}  g6 {[%clk 0:00:16]} 3. Nc3 {[%clk 0:02:58]}  Bg7 {[%clk 0:00:17]} 4. e4 {[%clk 0:02:58]}  O-O {[%clk 0:00:18]} 5. Nge2 {[%clk 0:02:58]}  d6 {[%clk 0:00:19]} 6. Ng3 {[%clk 0:02:58]}  Nbd7 {[%clk 0:00:20]} 7. Be2 {[%clk 0:02:58]}  e5 {[%clk 0:00:20]} 8. d5 {[%clk 0:02:58]}  a5 {[%clk 0:00:20]} 9. O-O {[%clk 0:02:58]}  Nc5 {[%clk 0:00:21]} 10. Be3 {[%clk 0:02:57]}  c6 {[%clk 0:00:22]} 11. Rc1 {[%clk 0:02:53]}  cxd5 {[%clk 0:00:22]} 12. cxd5 {[%clk 0:02:53]}  Nfd7 {[%clk 0:00:22]} 13. Nb5 {[%clk 0:02:51]}  Qe7 {[%clk 0:00:22]} 14. Nc7 {[%clk 0:02:46]}  Rb8 {[%clk 0:00:21]} 15. Nb5 {[%clk 0:02:45]}  b6 {[%clk 0:00:22]} 16. a3 {[%clk 0:02:43]}  Ba6 {[%clk 0:00:22]} 17. b4 {[%clk 0:02:41]}  axb4 {[%clk 0:00:22]} 18. axb4 {[%clk 0:02:41]}  Nb7 {[%clk 0:00:21]} 19. Rc7 {[%clk 0:02:30]}  Rfc8 {[%clk 0:00:20]} 20. Qc2 {[%clk 0:02:21]}  Qd8 {[%clk 0:00:20]} 21. Rc1 {[%clk 0:02:10]}  Rxc7 {[%clk 0:00:18]} 22. Qxc7 {[%clk 0:02:04]}  Nf8 {[%clk 0:00:14]} 23. Bxb6 {[%clk 0:01:50]}  Bf6 {[%clk 0:00:11]} 24. Qc6 {[%clk 0:01:23]}  Bxb5 {[%clk 0:00:10]} 25. Bxd8 {[%clk 0:01:10]}  Nxd8 {[%clk 0:00:10]} 26. Qxb5 {[%clk 0:01:04]}  Rxb5 {[%clk 0:00:08]} 27. Bxb5 {[%clk 0:01:04]}  Bg5 {[%clk 0:00:08]} 28. Rc8 {[%clk 0:01:02]}  Kg7 {[%clk 0:00:06]} 29. Bc6 {[%clk 0:00:58]}  f6 {[%clk 0:00:03]} 30. b5 {[%clk 0:00:57]}  Nf7 {[%clk 0:00:04]} 31. b6 {[%clk 0:00:55]}  Bd2 {[%clk 0:00:05]} 32. b7 {[%clk 0:00:54]}  Ba5 {[%clk 0:00:06]} 33. b8=Q {[%clk 0:00:54]}  g5 {[%clk 0:00:05]} 34. Rxf8 {[%clk 0:00:53]}  Kg6 {[%clk 0:00:06]} 35. Qe8 {[%clk 0:00:49]} 1-0


[Site "https://www.chess.com"]

[Event "Titled Tuesday Blitz December 27 Late 2022"]
[White "Vovk, Orest"]
[Black "Przybylski, Wojciech"]
[WhiteFideId "14113490"]
[BlackFideId "1117599"]
[WhiteElo "2315"]
[BlackElo "2321"]
[Result "1-0"]
[Round "07"]
[TimeControl "180+2"]
[Date "2022.12.27"]
[WhiteClock "0:00:02"]
[BlackClock "0:00:01"]

1. h4 {[%clk 0:03:00]}  e5 {[%clk 0:02:59]} 2. h5 {[%clk 0:03:01]}  d5 {[%clk 0:02:59]} 3. h6 {[%clk 0:03:00]}  Nxh6 {[%clk 0:02:58]} 4. d4 {[%clk 0:03:00]}  Nc6 {[%clk 0:02:56]} 5. Bxh6 {[%clk 0:03:00]}  gxh6 {[%clk 0:02:57]} 6. dxe5 {[%clk 0:03:00]}  Nxe5 {[%clk 0:02:55]} 7. Nf3 {[%clk 0:03:01]}  Bd6 {[%clk 0:02:48]} 8. Nxe5 {[%clk 0:03:01]}  Bxe5 {[%clk 0:02:47]} 9. Nc3 {[%clk 0:03:02]}  Be6 {[%clk 0:02:46]} 10. Rxh6 {[%clk 0:02:59]}  Qg5 {[%clk 0:02:45]} 11. Rh1 {[%clk 0:02:47]}  O-O-O {[%clk 0:02:43]} 12. Qd2 {[%clk 0:02:42]}  Qf6 {[%clk 0:02:39]} 13. O-O-O {[%clk 0:02:32]}  Qxf2 {[%clk 0:02:36]} 14. e3 {[%clk 0:02:22]}  Qg3 {[%clk 0:02:19]} 15. Bd3 {[%clk 0:02:14]}  d4 {[%clk 0:02:17]} 16. Ne4 {[%clk 0:02:06]}  Qxe3 {[%clk 0:02:13]} 17. Qxe3 {[%clk 0:02:04]}  dxe3 {[%clk 0:02:14]} 18. Rde1 {[%clk 0:02:04]}  Bd5 {[%clk 0:02:06]} 19. Rhf1 {[%clk 0:02:01]}  Rhg8 {[%clk 0:01:45]} 20. Nf6 {[%clk 0:01:51]}  Bxg2 {[%clk 0:01:37]} 21. Rf5 {[%clk 0:01:42]}  Bxf6 {[%clk 0:00:38]} 22. Rxf6 {[%clk 0:01:43]}  Bd5 {[%clk 0:00:37]} 23. Rxe3 {[%clk 0:01:39]}  h5 {[%clk 0:00:36]} 24. Rh3 {[%clk 0:01:34]}  Rg5 {[%clk 0:00:20]} 25. Rh6 {[%clk 0:01:32]}  Be6 {[%clk 0:00:17]} 26. R3xh5 {[%clk 0:01:30]}  Rxh5 {[%clk 0:00:17]} 27. Rxh5 {[%clk 0:01:31]}  Kd7 {[%clk 0:00:17]} 28. Kd2 {[%clk 0:01:31]}  Rg8 {[%clk 0:00:17]} 29. Ke3 {[%clk 0:01:30]}  b6 {[%clk 0:00:17]} 30. a4 {[%clk 0:01:28]}  c5 {[%clk 0:00:17]} 31. a5 {[%clk 0:01:27]}  Kd6 {[%clk 0:00:17]} 32. a6 {[%clk 0:01:26]}  Rg3+ {[%clk 0:00:15]} 33. Kf4 {[%clk 0:01:26]}  Rg4+ {[%clk 0:00:15]} 34. Ke3 {[%clk 0:01:24]}  c4 {[%clk 0:00:14]} 35. Be4 {[%clk 0:01:20]}  Rg3+ {[%clk 0:00:12]} 36. Kd4 {[%clk 0:01:13]}  Rg4 {[%clk 0:00:12]} 37. Ke3 {[%clk 0:01:07]}  Rg8 {[%clk 0:00:12]} 38. Rh1 {[%clk 0:01:00]}  b5 {[%clk 0:00:10]} 39. Rd1+ {[%clk 0:00:59]}  Kc5 {[%clk 0:00:11]} 40. c3 {[%clk 0:00:58]}  Re8 {[%clk 0:00:09]} 41. Kf4 {[%clk 0:00:58]}  Bc8 {[%clk 0:00:07]} 42. Rd5+ {[%clk 0:00:54]}  Kb6 {[%clk 0:00:07]} 43. Rd6+ {[%clk 0:00:54]}  Kc7 {[%clk 0:00:05]} 44. Rc6+ {[%clk 0:00:53]}  Kd7 {[%clk 0:00:04]} 45. Rh6 {[%clk 0:00:49]}  Ke7 {[%clk 0:00:02]} 46. Bc6 {[%clk 0:00:47]}  Rd8 {[%clk 0:00:02]} 47. Bxb5 {[%clk 0:00:47]}  Be6 {[%clk 0:00:03]} 48. Bc6 {[%clk 0:00:42]}  Kd6 {[%clk 0:00:03]} 49. Bb7 {[%clk 0:00:43]}  Rg8 {[%clk 0:00:03]} 50. Rh2 {[%clk 0:00:39]}  Kc5 {[%clk 0:00:03]} 51. Rh5+ {[%clk 0:00:37]}  Kd6 {[%clk 0:00:03]} 52. Ke3 {[%clk 0:00:35]}  Rg1 {[%clk 0:00:03]} 53. Rb5 {[%clk 0:00:32]}  Rd1 {[%clk 0:00:03]} 54. Bf3 {[%clk 0:00:31]}  Rd3+ {[%clk 0:00:02]} 55. Kf2 {[%clk 0:00:29]}  Bc8 {[%clk 0:00:03]} 56. Bb7 {[%clk 0:00:25]}  Bd7 {[%clk 0:00:03]} 57. Rb4 {[%clk 0:00:24]}  Kc5 {[%clk 0:00:03]} 58. Be4 {[%clk 0:00:20]}  Rd2+ {[%clk 0:00:03]} 59. Ke3 {[%clk 0:00:20]}  Rd6 {[%clk 0:00:03]} 60. Rb7 {[%clk 0:00:20]}  Bb5 {[%clk 0:00:04]} 61. Rxa7 {[%clk 0:00:18]}  Rxa6 {[%clk 0:00:03]} 62. Rxf7 {[%clk 0:00:18]}  Re6 {[%clk 0:00:03]} 63. Kf4 {[%clk 0:00:17]}  Rd6 {[%clk 0:00:03]} 64. Rf5+ {[%clk 0:00:15]}  Kb6 {[%clk 0:00:03]} 65. Bd5 {[%clk 0:00:14]}  Rh6 {[%clk 0:00:03]} 66. Ke5 {[%clk 0:00:11]}  Kc5 {[%clk 0:00:03]} 67. Bf3 {[%clk 0:00:08]}  Kb6 {[%clk 0:00:03]} 68. Kd4 {[%clk 0:00:07]}  Rh4+ {[%clk 0:00:03]} 69. Ke3 {[%clk 0:00:05]}  Rh2 {[%clk 0:00:03]} 70. Rf6+ {[%clk 0:00:05]}  Kc5 {[%clk 0:00:03]} 71. Be2 {[%clk 0:00:05]}  Rh3+ {[%clk 0:00:03]} 72. Kf2 {[%clk 0:00:05]}  Rh2+ {[%clk 0:00:03]} 73. Ke1 {[%clk 0:00:06]}  Rh1+ {[%clk 0:00:04]} 74. Kd2 {[%clk 0:00:06]}  Rh2 {[%clk 0:00:04]} 75. Rf5+ {[%clk 0:00:06]}  Kb6 {[%clk 0:00:05]} 76. Re5 {[%clk 0:00:07]}  Rg2 {[%clk 0:00:03]} 77. b3 {[%clk 0:00:06]}  Rh2 {[%clk 0:00:02]} 78. b4 {[%clk 0:00:04]}  Rh6 {[%clk 0:00:02]} 79. Ke3 {[%clk 0:00:04]}  Rh3+ {[%clk 0:00:02]} 80. Kd4 {[%clk 0:00:02]}  Rh4+ {[%clk 0:00:01]} 81. Re4 {[%clk 0:00:02]} 1-0


[Site "https://www.chess.com"]